Cogmind - Beta 15 @@@ ROGUE MODE // 2025.08.17 @ 15:09:58 Player: Mogwok Wargfriend Result: Destroyed by QC-XUR(g) with Beamcaster Performance ------------- Evolutions (4) 2000 Regions Visited (9) 1800 Robots Destroyed (188) 940 Value Destroyed (5336) 5336 Prototype IDs (11) 220 Alien Tech Used (0) 0 Bonus (1206) 1206 TOTAL SCORE: 11502 Bonus ------- High Alert Combat Kills 706 Entered DSFs 500 Cogmind --------- Core Integrity 0/850 Matter 282/300 Energy 246/290 System Corruption 11% Temperature Cool (39) Movement Rolling (130) Ox2 Location -6/Lower Caves Parts ------- > --- POWER (1) -------- Reinforced Deuterium Engine > --- PROPULSION (4) --- Light Treads Flexi-carbon Leg Compact Wheel Gravmag System > --- UTILITY (7) ------ Advanced Heat Sink Medium Storage Unit Enhanced Optical Array Experimental Utility Shielding Improved Light Armor Plating Authchip [R/Combat] Authchip [Device] > --- WEAPON (3) ------- Compact Ion Cannon Compact Ion Cannon Heavy Machine Gun > --- INVENTORY (10) --- Improved Deuterium Engine Hybrid Fission Core Matter Compressor (250) Improved Light Armor Plating Hacking Suite Hacking Suite Authchip [R/Combat] Authchip [Processor] Compact Ion Cannon Coil Gun Peak State ------------ > --- POWER ------------ Reinforced Deuterium Engine > --- PROPULSION ------- Light Treads Flexi-carbon Leg Compact Wheel Gravmag System > --- UTILITY ---------- Advanced Heat Sink Medium Storage Unit Enhanced Optical Array Experimental Utility Shielding Improved Light Armor Plating Authchip [R/Combat] Authchip [Device] > --- WEAPON ----------- Compact Ion Cannon Compact Ion Cannon Heavy Machine Gun > --- INVENTORY -------- Improved Deuterium Engine Hybrid Fission Core Matter Compressor Improved Light Armor Plating Hacking Suite Hacking Suite Authchip [R/Combat] Authchip [Processor] Compact Ion Cannon Coil Gun [Rating: 64] Favorites ----------- Power Nuclear Core Engine Reinforced Deuterium Engine Power Core Nuclear Core Propulsion Armored Treads Treads Armored Treads Leg Titanium Leg Wheel Wheel Hover Unit Gravmag System Utility Hacking Suite Device Advanced Heat Sink Storage Large Storage Unit Processor Enhanced Optical Array Hackware Hacking Suite Protection Utility Shielding Weapon Assault Rifle Energy Gun Plasma Rifle Energy Cannon Compact Ion Cannon Ballistic Gun Assault Rifle Launcher Mini Grenade Launcher Slashing Weapon Axe Special Melee Weapon Advanced Datajack Build | -11 -10 -9 -8 -7 -7 -7 -7 -6 -6 ------- Run | Yrd Mat Mat Mat Fac Was Fac DSF Fac Low Slots Evolved 8 | . . 2 2 2 . . . 2 . Power . | . . . . . . . . . . Propulsion 2 | . . . 1 1 . . . . . Utility 5 | . . 2 . 1 . . . 2 . Weapon 1 | . . . 1 . . . . . . Parts Attached 121 | 8 7 27 15 1 3 7 3 50 . Power 16 | 1 3 3 2 . 1 . . 6 . Engine 11 | 1 3 1 2 . . . . 4 . Core 5 | . . 2 . . 1 . . 2 . Reactor . | . . . . . . . . . . Propulsion 36 | 3 . 6 6 . . 5 . 16 . Treads 11 | 1 . 3 1 . . 4 . 2 . Leg 6 | . . . 3 . . 1 . 2 . Wheel 18 | 2 . 3 2 . . . . 11 . Hover 1 | . . . . . . . . 1 . Flight . | . . . . . . . . . . Utility 34 | 2 2 5 2 1 1 2 3 16 . Device 9 | 1 1 . . 1 1 . . 5 . Storage 6 | 1 . 1 1 . . . . 3 . Processor 5 | . . 1 . . . 1 . 3 . Hackware 5 | . 1 . . . . 1 3 . . Protection 9 | . . 3 1 . . . . 5 . Artifact . | . . . . . . . . . . Weapon 35 | 2 2 13 5 . 1 . . 12 . Energy Gun 8 | 1 . 3 1 . . . . 3 . Energy Cannon 9 | . . 3 1 . . . . 5 . Ballistic Gun 13 | 1 2 4 2 . . . . 4 . Ballistic Cannon . | . . . . . . . . . . Launcher 3 | . . 2 1 . . . . . . Special Weapon . | . . . . . . . . . . Impact Weapon . | . . . . . . . . . . Slashing Weapon 1 | . . 1 . . . . . . . Piercing Weapon . | . . . . . . . . . . Special Melee Weapon 1 | . . . . . 1 . . . . Unidentified Prototypes 9 | . . 4 2 . . . . 3 . Parts Lost 40 | . 1 3 2 . 5 . 1 28 . Power 5 | . 1 . . . . . . 4 . Propulsion 18 | . . 2 1 . 2 . . 13 . Utility 10 | . . . 1 . 3 . 1 5 . Weapon 7 | . . 1 . . . . . 6 . Highest Loss Streak 8 | . 1 1 1 . 4 . 1 8 . To Critical Strikes . | . . . . . . . . . . Average Backups 10 | 3 7 14 14 14 9 5 4 7 10 Power 1 | . 1 . . 1 . 1 1 1 2 Propulsion 1 | 2 2 2 2 2 1 1 2 1 . Utility 3 | . . 1 4 3 2 . . 4 6 Weapon 4 | . 3 8 7 8 4 2 1 . 2 Tool/Special . | . . . . . . . . . . Unused Backups 35 | . 3 7 3 . 6 . 2 5 9 Power 7 | . 1 2 1 . 1 . . 1 1 Propulsion 3 | . 1 . 1 . . . . 1 . Utility 10 | . . . 1 . 2 . . 1 6 Weapon 15 | . 1 5 . . 3 . 2 2 2 Tool/Special . | . . . . . . . . . . Average Slot Usage (%) 92 | . 99 97 98 87 42 50 73 87 99 Engine 3 | . 13 3 . 7 2 . . 3 6 Core 4 | . . 7 8 . . . . 2 . Treads 10 | . 14 11 7 . . 19 30 10 6 Leg 1 | . . . 4 23 8 1 . . 6 Wheel 10 | . 14 11 14 . . . . 9 6 Device 3 | . 9 . . 2 3 7 5 5 6 Storage 7 | . 14 11 9 7 3 . . 4 6 Processor 4 | . . 2 . . . 5 2 9 6 Hackware 12 | . 4 11 9 7 4 . 18 17 13 Protection 10 | . . 17 17 15 9 7 7 7 12 Energy Gun 4 | . 5 . 8 . . . . 5 . Energy Cannon 2 | . . . . 7 2 . . 4 13 Ballistic Gun 12 | . 22 20 17 15 5 . . 2 6 Peak Build Rating 64 | 7 9 22 32 36 36 31 36 64 64 Average Rating 32 | 5 7 16 27 33 14 25 33 52 63 On Entrance 24 | . 7 9 22 31 36 12 31 32 64 Naked Turns 1 | . . . . . 1 . . . . Heaviest Build 48 | 13 15 43 47 48 48 3 3 44 43 Greatest Support 60 | 10 16 16 51 51 51 3 20 60 16 Greatest Overweight (x) 7 | 1 1 4 4 . 1 . . 7 2 Average Overweight (x) . | . . 2 . . . . . . 2 Largest Inventory Capacity 15 | 8 8 15 15 15 15 5 5 10 10 Average Capacity 10 | 7 8 14 15 15 9 5 5 8 10 Most Carried 15 | 6 8 15 15 15 15 5 5 10 10 Average Carried 10 | 3 7 14 14 14 9 4 4 7 10 Final Capacity 15 | 8 8 15 15 15 5 5 5 10 10 Final Carried 15 | 6 8 15 15 15 5 5 5 10 10 Class Distribution -------------------- 38% | Mutant 27% | Scavenger-Tank 16% | Scavenger-Mutant 9% | Tank 6% | Skirmisher Dominant Class ---------------- Mutant | -10/Materials Scavenger-Mutant | -9/Materials Scavenger-Tank | -8/Materials Tank | -7/Factory Mutant | -7/Waste Mutant | -7/Factory Mutant | -7/DSF Mutant | -6/Factory Scavenger-Tank | -6/Lower Caves Resources | -11 -10 -9 -8 -7 -7 -7 -7 -6 -6 ----------- Run | Yrd Mat Mat Mat Fac Was Fac DSF Fac Low Matter Collected 4756 | 304 489 994 1179 34 . . 105 1624 27 Remotely . | . . . . . . . . . . Salvage Created 7890 | 137 569 1101 2222 73 . . . 3735 53 Parts 375 | 7 43 59 103 2 . . . 159 2 Haulers Intercepted 11 | . 2 3 5 . . . . 1 . Recyclers Shooed 13 | . 1 . 3 . . . . 9 . Parts Field Recycled . | . . . . . . . . . . Retrieved Matter . | . . . . . . . . . . Parts Self-Destructed . | . . . . . . . . . . Prevented . | . . . . . . . . . . Kills | -11 -10 -9 -8 -7 -7 -7 -7 -6 -6 ------- Run | Yrd Mat Mat Mat Fac Was Fac DSF Fac Low Combat Hostiles Destroyed 111 | . 12 16 30 1 . . . 51 1 Melee 1 | . . . . . . . . 1 . Guns 82 | . 12 14 27 . . . . 29 . Cannons 22 | . . 1 . 1 . . . 19 1 AOE 4 | . . 1 3 . . . . . . Classes Destroyed 16 | 2 7 3 1 . . . . 3 . Worker 16 | . 2 1 9 . . . . 4 . Builder 12 | . 1 3 3 . . . . 5 . Tunneler 6 | 3 1 1 . . . . . 1 . Hauler 11 | . 2 3 5 . . . . 1 . Recycler 12 | 1 . 1 3 . . . . 7 . Mechanic 3 | . . 1 . . . . . 2 . Operator 6 | . 2 2 2 . . . . . . Watcher 11 | . 3 3 3 . . . . 2 . Swarmer 25 | . 8 . 4 . . . . 13 . Saboteur 1 | . . . . . . . . 1 . Grunt 50 | . 4 9 19 . . . . 18 . Brawler 6 | . . 1 1 . . . . 4 . Duelist 2 | . . . . . . . . 2 . Sentry 14 | . . 6 4 1 . . . 3 . Hunter 4 | . . . 2 . . . . 2 . Programmer 8 | . . . . . . . . 8 . Butcher 1 | . . . . . . . . . 1 Best Kill Streak 13 | 4 6 3 6 1 . . . 13 1 Combat Bots Only 13 | . 3 3 4 1 . . . 13 1 Max Kills in Single Turn 2 | 1 2 1 2 1 . . . 1 1 Gunslinging 1 | . . . 1 . . . . . . Exploded 1 | . . 1 1 . . . . . . Melee 1 | . . . . . . . . 1 . Uniques/NPCs Destroyed . | . . . . . . . . . . Combat | -11 -10 -9 -8 -7 -7 -7 -7 -6 -6 -------- Run | Yrd Mat Mat Mat Fac Was Fac DSF Fac Low Hostile Shots Fired 818 | . 78 107 146 36 5 . 26 396 24 Missed 221 | . 24 21 41 11 . . 10 106 8 Hits 597 | . 54 86 105 25 5 . 16 290 16 Melee 18 | . . . . . 5 . 1 7 5 Projectile 579 | . 54 86 105 25 . . 15 283 11 Critical Strikes 21 | . . 2 4 . 3 . 1 10 1 Actively Blocked 1 | . . . . . . . . 1 . Damage Taken 9468 | . 448 1171 1629 181 255 . 504 4915 365 Core 1453 | . 86 167 166 29 139 . . 808 58 Absorbed by Shields . | . . . . . . . . . . Redirected to Shielding 187 | . . 12 20 1 . . 6 148 . Regen/Repaired (Parts) 709 | . . 220 293 . . . . 196 . Core Remaining (%) 73 | 100 65 58 69 . . . 76 . . Volleys Fired 548 | 8 56 115 141 4 9 . . 210 5 Largest 3 | 2 2 2 3 3 3 . . 3 3 Hottest 210 | 70 70 91 107 114 114 . . 210 210 Shots Fired 1280 | 16 112 208 379 12 26 . . 510 17 Gun 1036 | 16 112 197 372 8 18 . . 307 6 Cannon 229 | . . 3 . 4 8 . . 203 11 Launcher 15 | . . 8 7 . . . . . . Special . | . . . . . . . . . . Kinetic 738 | 8 75 197 274 8 18 . . 152 6 Thermal 518 | 8 37 3 98 4 8 . . 349 11 Explosive 15 | . . 8 7 . . . . . . Electromagnetic 9 | . . . . . . . . 9 . Robot Hit Streak 19 | 8 10 19 14 4 9 . . 10 2 Robot Miss Streak 9 | 1 4 5 4 2 1 . . 5 9 Penetration Max . | . . . . . . . . . . Secondary Targets 8 | . 3 2 2 . . . . 1 . Max Gunslinging Chain 1 | . 1 1 1 . . . . 1 . Shots Hit Robots 739 | 12 69 135 211 6 22 . . 281 3 Core Hits 308 | 5 31 52 93 3 5 . . 117 2 Critical Kills 2 | . . 1 . . . . . 1 . Critical Parts Destroyed . | . . . . . . . . . . Critical Strikes 20 | 1 . 1 8 . 1 . . 9 . Burn 16 | 1 . . 7 . . . . 8 . Meltdown 1 | . . . . . . . . 1 . Destroy 3 | . . 1 1 . 1 . . . . Melee Attacks 1 | . . 1 . . . . . . . Impact . | . . . . . . . . . . Slashing 1 | . . 1 . . . . . . . Piercing . | . . . . . . . . . . Sneak Attacks . | . . . . . . . . . . Combat Hostiles . | . . . . . . . . . . Follow-up Attacks . | . . . . . . . . . . Damage Inflicted 15825 | 156 877 2245 4269 103 383 . . 7712 80 Guns 10631 | 156 877 1737 3491 61 241 . . 4044 24 Cannons 3817 | . . 60 . 42 142 . . 3517 56 Explosions 1360 | . . 448 778 . . . . 134 . Melee . | . . . . . . . . . . Ramming 17 | . . . . . . . . 17 . Kinetic 6808 | 69 602 1737 2121 61 241 . . 1953 24 Thermal 7788 | 87 275 178 1370 42 142 . . 5638 56 Explosive 1108 | . . 330 778 . . . . . . Electromagnetic 104 | . . . . . . . . 104 . Impact . | . . . . . . . . . . Slashing . | . . . . . . . . . . Piercing . | . . . . . . . . . . Highest Corruption 11 | . . 2 . . . . 4 11 11 Average Corruption 4 | . . 2 . . . . 4 4 11 Corruption Purged 3 | . . . . . . . . 3 . Corruption Blocked . | . . . . . . . . . . Effects 87 | . . 8 . . . . . 73 6 Message Errors 21 | . . 3 . . . . . 18 . Matter Fused 12 | . . 2 . . . . . 9 1 Heat Flow Errors 6 | . . 1 . . . . . 4 1 Energy Discharges 9 | . . 1 . . . . . 7 1 Parts Rejected 1 | . . . . . . . . 1 . Parts Fused 1 | . . . . . . . . 1 . Data Loss (minor) 12 | . . . . . . . . 12 . Data Loss (major) 7 | . . 1 . . . . . 5 1 Misfires 8 | . . . . . . . . 6 2 Alerts 3 | . . . . . . . . 3 . Weapon Failures 7 | . . . . . . . . 7 . Overload Shots . | . . . . . . . . . . Overflow Damage 152 | . . . 15 . . . . 137 . Projectiles 93 | . . . . . . . . 93 . Explosions 59 | . . . 15 . . . . 44 . Melee . | . . . . . . . . . . Knockbacks . | . . . . . . . . . . Impact . | . . . . . . . . . . Kinetic . | . . . . . . . . . . Secondary . | . . . . . . . . . . Self-Inflicted Damage 91 | . . . 15 . . . . 76 . Shots 2 | . . . 1 . . . . 1 . Rammed 2 | . . . . . . . . 2 . Targets Rammed 2 | . . . . . . . . 2 . Kicked . | . . . . . . . . . . Crushed . | . . . . . . . . . . Highest Temperature 457 | 72 90 167 457 14 . . . 377 156 Average Temperature 88 | 36 27 23 103 7 . . . 100 64 Received Heat Transfer 2553 | . 42 516 747 48 . . 27 1110 63 Effects 9 | . . . 2 . . . . 7 . Shutdowns 1 | . . . . . . . . 1 . Energy Bleed 5 | . . . 2 . . . . 3 . Interference 2 | . . . . . . . . 2 . Matter Decay 1 | . . . . . . . . 1 . Siege Activations . | . . . . . . . . . . Martial Activations . | . . . . . . . . . . Shielding Activations . | . . . . . . . . . . Robots Disrupted . | . . . . . . . . . . Combat Hostiles . | . . . . . . . . . . Robots Corrupted . | . . . . . . . . . . Combat Hostiles . | . . . . . . . . . . Parts Fried . | . . . . . . . . . . Impact Corruptions . | . . . . . . . . . . Robots Melted 3 | . . . . . . . . 3 . Combat Hostiles 2 | . . . . . . . . 2 . Parts Melted 32 | 3 4 . 3 . . . . 22 . Heat Transferred 14365 | 333 814 211 2923 74 259 . . 9677 74 Parts Sabotaged 2 | . . . . . . . . 2 . Parts Stolen . | . . . . . . . . . . Parts Stripped . | . . . . . . . . . . Power Chain Reactions 1 | . . . . . . . . 1 . Alert | -11 -10 -9 -8 -7 -7 -7 -7 -6 -6 ------- Run | Yrd Mat Mat Mat Fac Was Fac DSF Fac Low Maximum Alert Level 4 | . . . 2 1 . . . 4 . Low Security (%) 73 | 100 100 100 53 . 100 100 100 57 . Level 1 9 | . . . 22 100 . . . 10 . Level 2 5 | . . . 24 . . . . 2 . Level 3 9 | . . . . . . . . 25 . Level 4 1 | . . . . . . . . 3 . Level 5 . | . . . . . . . . . . High Security . | . . . . . . . . . . Max Security . | . . . . . . . . . . Peak Influence 1125 | 15 123 179 582 255 78 14 35 1125 . Initial 255 | . . . 50 255 78 . . 18 . Average 214 | 2 53 84 235 229 27 1 11 355 . Influence Increases 4061 | 20 390 679 1071 30 . 20 45 1806 . Destroy 0b10 Robot/C 2200 | . 240 320 600 20 . . . 1020 . Destroy 0b10 Robot/NC 385 | 20 55 75 125 . . . . 110 . Destroy Leader 564 | . 70 112 136 10 . . . 236 . Successful Hack 174 | . 9 37 16 . . 20 . 92 . Disable Machine 180 | . . 75 60 . . . . 45 . Destroy Structure 138 | . 1 60 29 . . . . 48 . Partial Spotted 30 | . . . . . . . . 30 . Lose Combat Pursuer 390 | . 15 . 105 . . . 45 225 . Influence Decreases 3416 | 20 390 558 630 367 225 20 10 720 476 Entered New Map 958 | . . . 71 307 147 . . 17 416 Time Decay 2028 | 20 380 528 539 60 38 20 . 383 60 Lost Part 370 | . 10 30 20 . 40 . 10 260 . Lost Ally 60 | . . . . . . . . 60 . Squads Dispatched 32 | . 3 3 4 . . . 1 21 . Investigation 3 | . 1 1 . . . . . 1 . Extermination 7 | . . . . . . . . 7 . Reinforcement 16 | . 2 2 3 . . . 1 8 . Assault 3 | . . . 1 . . . . 2 . Garrison 3 | . . . . . . . . 3 . Intercept . | . . . . . . . . . . Searches Triggered . | . . . . . . . . . . Construction Impeded 3 | . . . 1 . . . . 2 . Haulers Reinforced 3 | . . . . . . . . 3 . Active Scanning Responses . | . . . . . . . . . . Cargo Convoy Interrupts . | . . . . . . . . . . Stealth | -11 -10 -9 -8 -7 -7 -7 -7 -6 -6 --------- Run | Yrd Mat Mat Mat Fac Was Fac DSF Fac Low Distress Signals 9 | . . 1 3 . . . . 5 . Communications Jammed . | . . . . . . . . . . Distress Signals . | . . . . . . . . . . Times Spotted 205 | . 20 29 52 1 6 1 9 81 6 Peak Tracking Total 7 | . 3 4 6 1 6 1 7 7 6 Tactical Retreats 17 | . 1 . 5 . . . 3 8 . Traps | -11 -10 -9 -8 -7 -7 -7 -7 -6 -6 ------- Run | Yrd Mat Mat Mat Fac Was Fac DSF Fac Low Traps Triggered 8 | . 1 2 . 1 . . 1 3 . Indirectly . | . . . . . . . . . . Trap Hack Attempts . | . . . . . . . . . . Triggered . | . . . . . . . . . . Disarmed . | . . . . . . . . . . Reprogrammed . | . . . . . . . . . . Reused . | . . . . . . . . . . Traps Extracted . | . . . . . . . . . . Installed . | . . . . . . . . . . Triggered . | . . . . . . . . . . Machines | -11 -10 -9 -8 -7 -7 -7 -7 -6 -6 ---------- Run | Yrd Mat Mat Mat Fac Was Fac DSF Fac Low Machines Disabled 12 | . . 5 4 . . . . 3 . Max in Single Turn 3 | . . 3 1 . . . . 1 . Garrison Access 1 | . . . . . . . . 1 . Machines Repaired . | . . . . . . . . . . Machines Dismantled . | . . . . . . . . . . Machines Sabotaged . | . . . . . . . . . . Overloaded Fab Kills . | . . . . . . . . . . Hacking | -11 -10 -9 -8 -7 -7 -7 -7 -6 -6 --------- Run | Yrd Mat Mat Mat Fac Was Fac DSF Fac Low Machines Accessed 45 | . 7 7 9 . . 3 . 19 . Terminals 26 | . 5 4 6 . . 2 . 9 . Fabricators 1 | . . . . . . . . 1 . Repair Stations 6 | . . 1 1 . . . . 4 . Recycling Units 7 | . 2 . 1 . . 1 . 3 . Scanalyzers 4 | . . 2 1 . . . . 1 . Garrison Access 1 | . . . . . . . . 1 . Total Hacks 159 | . 24 44 33 . . 11 . 47 . Successful 99 | . 9 37 23 . . 5 . 25 . Failed 59 | . 14 7 10 . . 6 . 22 . Catastrophic 9 | . 3 1 1 . . . . 4 . Database Lockouts 1 | . 1 . . . . . . . . Manual 80 | . 20 12 17 . . 6 . 25 . Terminals 81 | . 20 14 17 . . 8 . 22 . Fabricators 1 | . . . . . . . . 1 . Repair Stations 25 | . . 5 10 . . . . 10 . Recycling Units 19 | . 4 . 2 . . 3 . 10 . Scanalyzers 31 | . . 25 4 . . . . 2 . Garrison Access 2 | . . . . . . . . 2 . Terminal Hacks 22 | . 5 4 5 . . 3 . 5 . Record 1 | . . . . . . . . 1 . Part Schematic 1 | . . . . . . . . 1 . Robot Analysis 5 | . 1 2 2 . . . . . . Prototype ID Bank 1 | . . . . . . 1 . . . Open DSF 1 | . . . . . . 1 . . . Terminal Index 3 | . 1 1 . . . . . 1 . Alert Level 2 | . . . 1 . . . . 1 . Locate Traps 7 | . 2 1 2 . . 1 . 1 . Registered Components 1 | . 1 . . . . . . . . Fabricator Hacks . | . . . . . . . . . . Repair Station Hacks 18 | . . 4 8 . . . . 6 . Scan Component 10 | . . 2 4 . . . . 4 . Repair 8 | . . 2 4 . . . . 2 . Recycling Unit Hacks 2 | . 1 . . . . . . 1 . Report Inventory 2 | . 1 . . . . . . 1 . Scanalyzer 30 | . . 25 4 . . . . 1 . Insert Component 14 | . . 11 2 . . . . 1 . Analyze 16 | . . 14 2 . . . . . . Garrison Access Hacks 1 | . . . . . . . . 1 . Seal Access 1 | . . . . . . . . 1 . Unauthorized Hacks 26 | . 3 4 6 . . 2 . 11 . Terminals 17 | . 1 4 5 . . 2 . 5 . Assimilate 2 | . . 1 . . . 1 . . . Botnet 13 | . 1 2 4 . . 1 . 5 . Operators 2 | . . 1 1 . . . . . . Fabricators 1 | . . . . . . . . 1 . Liberate 1 | . . . . . . . . 1 . Repair Stations . | . . . . . . . . . . Recycling Units 8 | . 2 . 1 . . . . 5 . Reject 5 | . 1 . 1 . . . . 3 . Recyclers 1 | . 1 . . . . . . . . Mask 2 | . . . . . . . . 2 . Scanalyzers . | . . . . . . . . . . Garrison Access . | . . . . . . . . . . Data Cores Recovered 2 | . 1 . . . . . . 1 . Used 1 | . . . . . . . . 1 . Hacking Detections 41 | . 7 6 9 . . 2 . 17 . Full Trace Events 4 | . 1 1 1 . . . . 1 . Feedback Events . | . . . . . . . . . . Feedback Blocked . | . . . . . . . . . . Robot Schematics Acquired . | . . . . . . . . . . Robots Built . | . . . . . . . . . . Authchips . | . . . . . . . . . . Time . | . . . . . . . . . . Total Robot Build Rating . | . . . . . . . . . . Part Schematics Acquired 12 | . . 10 1 . . . . 1 . Parts Built . | . . . . . . . . . . Authchips . | . . . . . . . . . . Time . | . . . . . . . . . . Total Part Build Rating . | . . . . . . . . . . Parts Repaired 8 | . . 2 4 . . . . 2 . Time 276 | . . 76 128 . . . . 72 . Parts Recycled . | . . . . . . . . . . Recycled Matter . | . . . . . . . . . . Retrieved Matter . | . . . . . . . . . . Retrieved Components . | . . . . . . . . . . Parts Scanalyzed 12 | . . 10 2 . . . . . . Part Schematics Acquired 11 | . . 10 1 . . . . . . Parts Damaged . | . . . . . . . . . . Bothacking | -11 -10 -9 -8 -7 -7 -7 -7 -6 -6 ------------ Run | Yrd Mat Mat Mat Fac Was Fac DSF Fac Low Used RIF Installer . | . . . . . . . . . . Robots Hacked . | . . . . . . . . . . Non-combat . | . . . . . . . . . . Combat . | . . . . . . . . . . Robot Hacks Applied . | . . . . . . . . . . Relay Couplers Released . | . . . . . . . . . . Fabnet Peak Effective % . | . . . . . . . . . . Robots Rewired . | . . . . . . . . . . Allies Hacked . | . . . . . . . . . . Hacks Repelled . | . . . . . . . . . . Allies | -11 -10 -9 -8 -7 -7 -7 -7 -6 -6 -------- Run | Yrd Mat Mat Mat Fac Was Fac DSF Fac Low Total Allies 4 | . . . . . . 1 . 3 . Largest Group 3 | . . . . . . 1 1 3 . Highest-Rated Group 87 | . . . . . . 10 10 87 . Highest-Rated Ally 29 | . . . . . . 10 10 29 . Total Orders . | . . . . . . . . . . Ally Attacks 11 | . . . . . . . . 11 . Total Damage 169 | . . . . . . . . 169 . Kills . | . . . . . . . . . . Allies Corrupted . | . . . . . . . . . . Allies Melted . | . . . . . . . . . . Intel | -11 -10 -9 -8 -7 -7 -7 -7 -6 -6 ------- Run | Yrd Mat Mat Mat Fac Was Fac DSF Fac Low Active Infowar (turns) 4757 | 19 688 480 . . . . . 3438 132 Optics 3570 | . . . . . . . . 3438 132 Terrain 978 | . . . . . . . . 978 . Seismic 707 | 19 688 . . . . . . . . T.N.C. 480 | . . 480 . . . . . . . Robot Analysis Total 5 | . 1 2 2 . . . . . . Derelict Logs Recovered 1 | . . . . . . . . . 1 Drone Launches . | . . . . . . . . . . Drone Recoveries . | . . . . . . . . . . Exploration | -11 -10 -9 -8 -7 -7 -7 -7 -6 -6 ------------- Run | Yrd Mat Mat Mat Fac Was Fac DSF Fac Low Turns Passed 9439 | 142 1044 2193 1687 134 126 131 135 3715 132 Spaces Moved 6260 | 114 838 1189 941 92 129 202 172 2495 88 Core 684 | 16 . . . . 114 202 159 193 . Treads 52 | . . . . . . . 13 39 . Legs 276 | . . . 169 92 15 . . . . Wheels 5248 | 98 838 1189 772 . . . . 2263 88 Hover . | . . . . . . . . . . Flight . | . . . . . . . . . . Fastest Speed 50 | 50 95 100 100 130 50 50 50 50 130 Average Speed 103 | 88 98 128 106 130 62 50 59 99 130 Slowest Speed 400 | 100 100 140 270 130 200 50 170 400 130 Overloaded Moves . | . . . . . . . . . . Propulsion Burnouts . | . . . . . . . . . . Robots Hopped . | . . . . . . . . . . Potential Cave-ins . | . . . . . . . . . . Cave-ins Triggered . | . . . . . . . . . . Exploration Rate (%) 47 | 5 94 74 65 3 66 3 93 47 23 Regions Visited 9 Branch Regions 1 Pre-discovered Areas . | . . . . . . . . . . Known Exits Taken 1 | . . . . . . 1 . . . Unknown Exits Taken 5 | 1 1 1 1 . . . . 1 . Scrap Searched 1 | . . . . . . . . . 1 Spaces Dug 2 | . . 1 . . . . . 1 . Terrain Destroyed 130 | . . 63 24 . . . . 36 7 Melee 1 | . . 1 . . . . . . . Projectile 40 | . . . . . . . . 33 7 AOE 89 | . . 62 24 . . . . 3 . Terrain Rammed . | . . . . . . . . . . Walls Destroyed . | . . . . . . . . . . Machines Disabled . | . . . . . . . . . . Actions | -11 -10 -9 -8 -7 -7 -7 -7 -6 -6 --------- Run | Yrd Mat Mat Mat Fac Was Fac DSF Fac Low Total 8165 | 135 945 1652 1332 98 152 228 204 3324 95 Wait 1021 | . 28 266 193 . 9 16 17 491 1 Move 6252 | 113 837 1188 940 92 128 201 171 2494 88 Hop . | . . . . . . . . . . Pick Up 72 | 5 6 21 8 1 . 1 2 28 . Fast Attach 90 | 8 2 9 14 . 4 7 4 41 1 Attach 32 | . . 6 4 1 1 1 . 19 . Detach 22 | 1 . 6 4 . 1 . 1 9 . Swap 37 | . 6 17 10 . . . . 4 . Drop 82 | . 10 23 18 . . 2 3 26 . Fire 548 | 8 56 115 141 4 9 . . 210 5 Melee 1 | . . 1 . . . . . . . Ram 2 | . . . . . . . . 2 . Kick . | . . . . . . . . . . Crush . | . . . . . . . . . . Escape Stasis 5 | . . . . . . . 5 . . Rewire 1 | . . . . . . . 1 . . Trap . | . . . . . . . . . . Miscellaneous . | . . . . . . . . . . Route ------- -11/Scrapyard -10/Materials (discovered 5 exits: *Mat x3 / [*Min] / [*Sub]) -9/Materials (discovered 4 exits: *Mat x2 / [*Min] / [*Sto]) -8/Materials (discovered 2 exits: [*Fac x2]) -7/Factory -7/Waste -7/Factory -7/DSF -6/Factory (discovered 2 exits: [Fac] / [*Low]) -6/Lower Caves History --------- Turn | Location | Event 26 | -11/Scrapyard | Discovered new exit (range 16) 143 | -11/Scrapyard | Entered Materials 316 | -10/Materials | Build established: Mutant 324 | -10/Materials | Discovered new exit (range 15) 455 | -10/Materials | Discovered new exit (range 8) 538 | -10/Materials | Discovered new exit (range 15) 597 | -10/Materials | Discovered new exit (range 6) 662 | -10/Materials | Central database locked down 753 | -10/Materials | Discovered new exit (range 5) 1187 | -10/Materials | Entered another Materials area 1187 | -9/Materials | Evolved 2 slots: Utility x2 1878 | -9/Materials | Discovered new exit (range 12) 2214 | -9/Materials | Discovered new exit (range 9) 2460 | -9/Materials | Build established: Scavenger-Mutant 2550 | -9/Materials | Discovered new exit (range 6) 2842 | -9/Materials | Discovered new exit (range 8) 2958 | -9/Materials | Repaired Nuclear Core 2998 | -9/Materials | Repaired Hrd. Medium Armor Plating 3380 | -9/Materials | Entered another Materials area 3380 | -8/Materials | Evolved 2 slots: Propulsion x1, Weapon x1 3865 | -8/Materials | Discovered new exit (range 15) 3868 | -8/Materials | Build established: Scavenger-Tank 4440 | -8/Materials | Repaired Arm. Wheel 4480 | -8/Materials | Repaired Adv. Treads 4512 | -8/Materials | Repaired Hvy. Assault Rifle 4540 | -8/Materials | Repaired Utility Shielding 4889 | -8/Materials | Discovered new exit (range 10) 4980 | -8/Materials | First assault squad dispatched 5067 | -8/Materials | Entered Factory 5067 | -7/Factory | Evolved 2 slots: Propulsion x1, Utility x1 5089 | -7/Factory | Build established: Tank 5201 | -7/Factory | Sucked down chute 5201 | -7/Factory | Entered Waste 5213 | -7/Waste | Spotted C-40 Crusher 5237 | -7/Waste | Crushed by Compactor (1 part destroyed, 2 dropped) 5240 | -7/Waste | Crushed by Compactor (1 part destroyed, 2 dropped) 5243 | -7/Waste | Crushed by Compactor (1 part destroyed, 2 dropped) 5255 | -7/Waste | Crushed by Compactor (1 part destroyed, 1 dropped) 5268 | -7/Waste | Spotted C-40 Crusher 5275 | -7/Waste | Spotted C-40 Crusher 5279 | -7/Waste | Spotted C-40 Crusher 5286 | -7/Waste | Lost 4 parts (2n2u) 5288 | -7/Waste | Crushed by Compactor (1 part destroyed, 1 dropped) 5293 | -7/Waste | Spotted C-40 Crusher 5299 | -7/Waste | Spotted C-40 Crusher 5305 | -7/Waste | Discovered new exit (range 16) 5327 | -7/Waste | Entered Factory 5353 | -7/Factory | Identified exit to DSF 5458 | -7/Factory | Entered DSF 5458 | -7/DSF | Accompanied by 1 ally 5501 | -7/DSF | Additional patrols routed to DSF 5537 | -7/DSF | Build established: Mutant 5586 | -7/DSF | Discovered new exit (range 14) 5593 | -7/DSF | Entered Factory 5593 | -6/Factory | Evolved 2 slots: Utility x2 5989 | -6/Factory | Discovered new exit (range 14) 6513 | -6/Factory | Build established: Skirmisher 7252 | -6/Factory | Lost 8 parts (1p4n1u2w) 7507 | -6/Factory | Repaired Plasma Rifle 7696 | -6/Factory | Discovered new exit (range 9) 7765 | -6/Factory | Build established: Mutant 7956 | -6/Factory | Lost 3 parts (2n1u) 8121 | -6/Factory | Repaired Arm. Huge Wheel 8153 | -6/Factory | Garrison activated, responded to threat 8203 | -6/Factory | Core integrity fell below 50% 8275 | -6/Factory | Destroyed 13 combat bots 8352 | -6/Factory | Lost 4 parts (1p1n2w) 8566 | -6/Factory | Build established: Scavenger-Tank 8733 | -6/Factory | Core integrity fell below 20% 8743 | -6/Factory | First assault squad dispatched 9245 | -6/Factory | System corruption reached 10% 9308 | -6/Factory | Entered Lower Caves 9357 | -6/Lower Caves | Learned Factory garrison access intel 9372 | -6/Lower Caves | Attacked by a faux Warlord 9440 | -6/Lower Caves | Destroyed by QC-XUR(g) with Beamcaster Last Messages --------------- destroy it!" 09378_ System corrupted: Energy discharge (-107). 09383_ Searching scrap... 09383_ Found Hacking Suite. 09383_ Found Unknown Leg. 09383_ Found Adv. ECM Suite. 09383_ Found 49 Matter. 09384_ Acquired 19 matter. 09385_ Acquired 4 matter. 09403_ System corrupted: Heat flow error (+130). 09423_ System corrupted: Substantial component data lost. 09436_ A2-J9I(l) destroyed. 09438_ Imp. Light Armor Plating severed. 09440_ System corrupted: FCS attempts to trigger Com. Ion Cannon. 09440_ System corrupted: Com. Ion Cannon misfires. 09440_ Acquired Imp. Light Armor Plating. Map ----- +----------------------------------------------------+ | ?????????### #??????????????? ### | | ?????????# #???????????????# | | ?????????? ?#?????????????# | | ???????????# ## ???????????## | | ????????????# ??????????## ??### | | ????????????# ??????????# ###?#### | | ????????????# ??###??#### ##### | | ?????##?????# ### #### #?# | | # ## ##### ## ##??## | | # ##??## | | #???# ## | | ????????# ## #?### ### | | ????????## #### ##?# ## #?# | | ?????????#### ##?# #??# ## ######?# | | ????????????## ##### #??# #?# #??????# | | ?????????????# ##?# #?## #?# #??????## | | ?????????????# #?# ### #??# #?###???## | | ????????# ## ###?# #???# ## ### # | | ???????# ??## # #???##### #??## | | ???? ????### #???????# #### | | ? ???????# #???????#!= ### | | ?? ????????# #???#####%! #??? | | ??## #????????## #### ### # ## #??? | | ???# ??????????# # ## #???# ##### | | ??? ???????????## #gl* #?????##??# ## | | ??? ?????????????## l @ #???????? #?? | | ???? ???????????????# l## #??????# | | ????????????????????##### ???? ######## | | ????????????????????????## ###??####????????# | | ??????????????????????????##?????????????????# ## | | ??????????????????????????????????????????????# #? | | ???????????????????????????????????????????????##? | | ?????????????????????????????????????????????????? | | ?????????????????????????????????????????????????? | | ?????????????????????????????????????????????????? | | ?????????????????????????????????????????????????? | | ?????????????????????????????????????????????????? | | ?????????????????????????????????????????????????? | | ?????????????????????????????????????????????????? | | ?????????????????????????????????????????????????? | | ?????????????????????????????????????????????????? | | ?????????????????????????????????????????????????? | | ?????????????????????????????????????????????????? | | ?????????????????????????????????????????????????? | | ?????????????????????????????????????????????????? | | ?????????????????????????????????????????????????? | | ?????????????????????????????????????????????????? | | | | | | | +----------------------------------------------------+ Best States ------------- Heat Dissipation 70 Energy Generation 18 Energy Capacity 900 Matter Stores 300 Matter Capacity 450 Sight Range 22 Terrain Scan Range 16 Terrain Scan Density 210 Armor Coverage 225 Utility Shielding 90 Evasion (%) 55 Targeting Accuracy 6 Recoil Reduction 1 Offensive Hacking 10 Authchip Count 5 Item Schematics ----------------- Mni. Grenade Launcher | -9/Materials | Scanalyzed Hvy. Assault Rifle | -9/Materials | Scanalyzed Rocket Launcher | -9/Materials | Scanalyzed Hrd. Medium Armor Plating | -9/Materials | Scanalyzed Nuclear Core | -9/Materials | Scanalyzed Axe | -9/Materials | Scanalyzed Adv. Beam Cannon | -9/Materials | Scanalyzed Hcp. Matter Pod | -9/Materials | Scanalyzed Assault Rifle | -9/Materials | Scanalyzed Lgt. Treads | -9/Materials | Scanalyzed Hacking Suite | -8/Materials | Scanalyzed Imp. Hacking Suite | -6/Factory | Hacked Robot Schematics ------------------ None Fabricated ------------ Nothing Repaired ---------- Nuclear Core | 66% | -9/Materials Hrd. Medium Armor Plating | 18% | -9/Materials Arm. Wheel | 37% | -8/Materials Adv. Treads | 26% | -8/Materials Hvy. Assault Rifle | 29% | -8/Materials Utility Shielding | 52% | -8/Materials Plasma Rifle | 2% | -6/Factory Arm. Huge Wheel | 56% | -6/Factory Alien Tech Used ----------------- None Achievements -------------- None Challenges ------------ None Game ------ Seed DecoyChainJets Manual? 0 Play Time 01:23:13 Cumulative 316.0 hours Start 2025.08.17 @ 12:12:43 End 2025.08.17 @ 15:09:58 Sessions 3 Manual Loads 0 Difficulty Rogue Special Mode None Game No. 273 Rogue 273 Adventurer 0 Explorer 0 Win Type - Total 2 Types 2/0/0/0/0/0/0/0/0/0 Lore% 69 Gallery% 64 Achievement% 53 Wizard Run 0 Options --------- Layout 2 ASCII 1 Keyboard 1 Movement Numpad Keybinds 0 Fullscreen 2 Font 32/TamsynBold Map View 50x44 Zoom Use 0% Tactical HUD 1 Map Filters NONE Filters NONE Steam 1 RUN: ff70b645-ebc9-4aee-abc9-48743f6c1edb